[Event "Early-Titled-Tuesday-Blitz-February-06-2024"]
[Site "Chess.com"]
[Date "2024.02.06"]
[Round "4"]
[White "jk13"]
[Black "stasOR4ik"]
[Result "1-0"]
[WhiteElo "2649"]
[BlackElo "2404"]
[TimeControl "180+1"]
[EndTime "8:39:46 PST"]
[Termination "jk13 won by checkmate"]

1. h4 {[%clk 0:02:58]} 1... d5 {[%clk 0:02:55.1]} 2. d4 {[%clk 0:02:57.7]} 2...
Nf6 {[%clk 0:02:54.3]} 3. c3 {[%clk 0:02:57.5]} 3... c5 {[%clk 0:02:53.1]} 4. h5
{[%clk 0:02:50.7]} 4... cxd4 {[%clk 0:02:50.8]} 5. cxd4 {[%clk 0:02:50.7]} 5...
Nc6 {[%clk 0:02:51.3]} 6. Nc3 {[%clk 0:02:50.2]} 6... Qb6 {[%clk 0:02:38.1]} 7.
Nf3 {[%clk 0:02:47.8]} 7... Bg4 {[%clk 0:02:37.4]} 8. h6 {[%clk 0:02:42.6]} 8...
Bxf3 {[%clk 0:02:36.9]} 9. hxg7 {[%clk 0:02:34.3]} 9... Bxg7 {[%clk 0:02:36.9]}
10. gxf3 {[%clk 0:02:33.7]} 10... Qxd4 {[%clk 0:02:30]} 11. Qb3 {[%clk
0:02:14.5]} 11... O-O-O {[%clk 0:02:22.4]} 12. Bg5 {[%clk 0:01:53.7]} 12... Qb4
{[%clk 0:02:16.5]} 13. Qxb4 {[%clk 0:01:38.1]} 13... Nxb4 {[%clk 0:02:16.2]} 14.
Rc1 {[%clk 0:01:37.9]} 14... Nc6 {[%clk 0:02:05.1]} 15. Nb5 {[%clk 0:01:27.9]}
15... Kb8 {[%clk 0:02:02.5]} 16. Rg1 {[%clk 0:01:16.8]} 16... Rhg8 {[%clk
0:01:56.4]} 17. Be3 {[%clk 0:01:07.2]} 17... d4 {[%clk 0:01:40.8]} 18. Bf4+
{[%clk 0:01:05.1]} 18... e5 {[%clk 0:01:40.9]} 19. Bd2 {[%clk 0:01:04.3]} 19...
a6 {[%clk 0:01:32]} 20. Na3 {[%clk 0:01:04.9]} 20... Bf8 {[%clk 0:01:27.4]} 21.
Rh1 {[%clk 0:01:01.5]} 21... Bb4 {[%clk 0:01:20.7]} 22. Nc4 {[%clk 0:00:57.3]}
22... e4 {[%clk 0:01:14.7]} 23. fxe4 {[%clk 0:00:50.5]} 23... Nxe4 {[%clk
0:01:14.2]} 24. Bxb4 {[%clk 0:00:51]} 24... Nxb4 {[%clk 0:01:14.1]} 25. a3
{[%clk 0:00:51.9]} 25... d3 {[%clk 0:00:56.3]} 26. axb4 {[%clk 0:00:44.1]} 26...
d2+ {[%clk 0:00:55.3]} 27. Nxd2 {[%clk 0:00:44.5]} 27... Rxd2 {[%clk 0:00:45.4]}
28. f3 {[%clk 0:00:43.9]} 28... Ng3 {[%clk 0:00:37.8]} 29. Rg1 {[%clk
0:00:34.7]} 29... Rdd8 {[%clk 0:00:21.6]} 30. Rc4 {[%clk 0:00:27.5]} 30... Nf5
{[%clk 0:00:19.9]} 31. Rh1 {[%clk 0:00:23.8]} 31... Rd1+ {[%clk 0:00:19]} 32.
Kf2 {[%clk 0:00:19.4]} 32... Nd6 {[%clk 0:00:17.2]} 33. Rch4 {[%clk 0:00:17.3]}
33... Rb1 {[%clk 0:00:16.8]} 34. Rh6 {[%clk 0:00:15.8]} 34... Rxb2 {[%clk
0:00:17]} 35. Rxd6 {[%clk 0:00:15.7]} 35... Rxb4 {[%clk 0:00:17.2]} 36. Rxh7
{[%clk 0:00:15]} 36... Rf4 {[%clk 0:00:16]} 37. Rd7 {[%clk 0:00:14.6]} 37... Rf8
{[%clk 0:00:14.7]} 38. e3 {[%clk 0:00:15]} 38... Rf6 {[%clk 0:00:14.6]} 39. f4
{[%clk 0:00:14.8]} 39... b5 {[%clk 0:00:14]} 40. Bg2 {[%clk 0:00:11.7]} 40...
Kc8 {[%clk 0:00:12.6]} 41. Ra7 {[%clk 0:00:10.7]} 41... Kb8 {[%clk 0:00:13]} 42.
Ra8+ {[%clk 0:00:11]} 42... Kc7 {[%clk 0:00:12.7]} 43. Rxf8 {[%clk 0:00:11.9]}
43... b4 {[%clk 0:00:13]} 44. Rfxf7+ {[%clk 0:00:11.7]} 44... Rxf7 {[%clk
0:00:13]} 45. Rxf7+ {[%clk 0:00:12.6]} 45... Kb6 {[%clk 0:00:13.5]} 46. Ke2
{[%clk 0:00:12.8]} 46... Kb5 {[%clk 0:00:13]} 47. Kd3 {[%clk 0:00:13.2]} 47...
a5 {[%clk 0:00:13.6]} 48. Bd5 {[%clk 0:00:12.9]} 48... a4 {[%clk 0:00:14.1]} 49.
Rb7+ {[%clk 0:00:13.6]} 49... Kc5 {[%clk 0:00:14.6]} 50. e4 {[%clk 0:00:14]}
50... b3 {[%clk 0:00:14.8]} 51. f5 {[%clk 0:00:14.1]} 51... Kd6 {[%clk 0:00:15]}
52. Kd4 {[%clk 0:00:13.2]} 52... b2 {[%clk 0:00:15.3]} 53. e5# {[%clk
0:00:14.1]} 1-0

[Event "Early-Titled-Tuesday-Blitz-February-06-2024"]
[Site "Chess.com"]
[Date "2024.02.06"]
[Round "4"]
[White "Alexchess1984"]
[Black "korkmaz16"]
[Result "0-1"]
[WhiteElo "2648"]
[BlackElo "2516"]
[TimeControl "180+1"]
[EndTime "8:39:48 PST"]
[Termination "korkmaz16 won on time"]

1. e4 {[%clk 0:03:00.9]} 1... e6 {[%clk 0:02:58.9]} 2. d4 {[%clk 0:02:59.8]}
2... d5 {[%clk 0:02:59]} 3. e5 {[%clk 0:02:56.5]} 3... c5 {[%clk 0:02:58.6]} 4.
c3 {[%clk 0:02:57]} 4... Nc6 {[%clk 0:02:59.1]} 5. Nf3 {[%clk 0:02:57.3]} 5...
Qb6 {[%clk 0:02:59.7]} 6. Be2 {[%clk 0:02:57.1]} 6... cxd4 {[%clk 0:02:53.4]} 7.
cxd4 {[%clk 0:02:56.7]} 7... Nge7 {[%clk 0:02:53.8]} 8. Na3 {[%clk 0:02:55.1]}
8... Nf5 {[%clk 0:02:52.1]} 9. Nc2 {[%clk 0:02:55.2]} 9... Bd7 {[%clk 0:02:48]}
10. a3 {[%clk 0:02:50.3]} 10... Na5 {[%clk 0:02:44.2]} 11. O-O {[%clk
0:02:27.3]} 11... Bb5 {[%clk 0:02:43.3]} 12. b4 {[%clk 0:02:16.9]} 12... Nb3
{[%clk 0:02:41.4]} 13. Rb1 {[%clk 0:02:13.5]} 13... Nxc1 {[%clk 0:02:41.2]} 14.
Rxc1 {[%clk 0:02:11.5]} 14... Be7 {[%clk 0:02:34.3]} 15. Re1 {[%clk 0:01:46.5]}
15... O-O {[%clk 0:02:31.8]} 16. g4 {[%clk 0:01:40.4]} 16... Nh4 {[%clk
0:02:29.3]} 17. Nxh4 {[%clk 0:01:40.3]} 17... Bxh4 {[%clk 0:02:29.5]} 18. Bxb5
{[%clk 0:01:40.2]} 18... Qxb5 {[%clk 0:02:29.6]} 19. Re3 {[%clk 0:01:40]} 19...
Bg5 {[%clk 0:02:28.3]} 20. a4 {[%clk 0:01:27.4]} 20... Qd7 {[%clk 0:02:25.5]}
21. b5 {[%clk 0:01:19]} 21... Rac8 {[%clk 0:02:23]} 22. Rb1 {[%clk 0:01:00.3]}
22... Bxe3 {[%clk 0:02:21.4]} 23. Nxe3 {[%clk 0:01:01]} 23... Rc3 {[%clk
0:02:20.3]} 24. h4 {[%clk 0:00:54.7]} 24... Rfc8 {[%clk 0:02:19.7]} 25. Kg2
{[%clk 0:00:49]} 25... Qc7 {[%clk 0:02:18.4]} 26. g5 {[%clk 0:00:46.5]} 26...
Rc1 {[%clk 0:01:57.6]} 27. Rxc1 {[%clk 0:00:38.6]} 27... Qxc1 {[%clk 0:01:58.5]}
28. Qg4 {[%clk 0:00:37.6]} 28... Qb1 {[%clk 0:01:49.6]} 29. h5 {[%clk 0:00:12]}
29... Rc1 {[%clk 0:01:44.5]} 30. Kf3 {[%clk 0:00:10.6]} 30... Rg1 {[%clk
0:01:38.4]} 31. Qf4 {[%clk 0:00:07.8]} 31... Qe4+ {[%clk 0:01:24.3]} 32. Qxe4
{[%clk 0:00:08]} 32... dxe4+ {[%clk 0:01:24.9]} 33. Kf4 {[%clk 0:00:08.7]} 33...
Ra1 {[%clk 0:01:21.6]} 34. Kxe4 {[%clk 0:00:08.4]} 34... Rxa4 {[%clk 0:01:21.7]}
35. f4 {[%clk 0:00:08.4]} 35... Rb4 {[%clk 0:01:21.6]} 36. f5 {[%clk 0:00:08.8]}
36... Rxb5 {[%clk 0:01:21]} 37. Nc4 {[%clk 0:00:05.9]} 37... a5 {[%clk
0:01:18.8]} 38. Nd6 {[%clk 0:00:05.7]} 38... Rb4 {[%clk 0:01:18.8]} 39. g6
{[%clk 0:00:03.3]} 39... hxg6 {[%clk 0:01:12.4]} 40. hxg6 {[%clk 0:00:02.9]}
40... exf5+ {[%clk 0:01:12.5]} 41. Kxf5 {[%clk 0:00:02.6]} 41... Rxd4 {[%clk
0:01:08.8]} 42. gxf7+ {[%clk 0:00:02.1]} 42... Kf8 {[%clk 0:01:08.9]} 43. Ke6
{[%clk 0:00:01.9]} 43... b6 {[%clk 0:01:01.7]} 44. Nb5 {[%clk 0:00:02.1]} 44...
Rf4 {[%clk 0:00:56.8]} 45. Nd6 {[%clk 0:00:02.1]} 45... a4 {[%clk 0:00:55.7]}
46. Kd7 {[%clk 0:00:02.3]} 46... Rf3 {[%clk 0:00:43.2]} 47. e6 {[%clk
0:00:02.3]} 47... Re3 {[%clk 0:00:43.6]} 48. Nf5 {[%clk 0:00:02.3]} 48... a3
{[%clk 0:00:42.5]} 49. Nxe3 {[%clk 0:00:01.6]} 49... a2 {[%clk 0:00:41.9]} 50.
e7+ {[%clk 0:00:02]} 50... Kxf7 {[%clk 0:00:42.6]} 51. e8=Q+ {[%clk 0:00:02.7]}
51... Kf6 {[%clk 0:00:43.1]} 52. Nd5+ {[%clk 0:00:03]} 52... Kf5 {[%clk
0:00:43.1]} 53. Qe1 {[%clk 0:00:02.6]} 53... a1=Q {[%clk 0:00:42.2]} 54. Qxa1
{[%clk 0:00:02]} 54... Ke4 {[%clk 0:00:42.8]} 55. Nxb6 {[%clk 0:00:02]} 55... g5
{[%clk 0:00:42.7]} 56. Qg1 {[%clk 0:00:01.7]} 56... g4 {[%clk 0:00:43.3]} 0-1

[Event "Early-Titled-Tuesday-Blitz-February-06-2024"]
[Site "Chess.com"]
[Date "2024.02.06"]
[Round "4"]
[White "LiadCuba"]
[Black "bescmelasti"]
[Result "0-1"]
[WhiteElo "2456"]
[BlackElo "2687"]
[TimeControl "180+1"]
[EndTime "8:39:50 PST"]
[Termination "bescmelasti won on time"]

1. d4 {[%clk 0:03:00.9]} 1... Nf6 {[%clk 0:02:56.6]} 2. c4 {[%clk 0:03:00.9]}
2... e6 {[%clk 0:02:56.6]} 3. Nc3 {[%clk 0:03:01.2]} 3... Bb4 {[%clk 0:02:56.6]}
4. f3 {[%clk 0:03:01.7]} 4... O-O {[%clk 0:02:54.1]} 5. e4 {[%clk 0:03:01.4]}
5... d5 {[%clk 0:02:54.2]} 6. cxd5 {[%clk 0:03:02.3]} 6... exd5 {[%clk
0:02:50.9]} 7. e5 {[%clk 0:03:03.2]} 7... Nfd7 {[%clk 0:02:50]} 8. f4 {[%clk
0:03:02.2]} 8... c5 {[%clk 0:02:50.2]} 9. Be3 {[%clk 0:03:02.6]} 9... Nc6 {[%clk
0:02:50.1]} 10. Nf3 {[%clk 0:03:02.5]} 10... cxd4 {[%clk 0:02:40.5]} 11. Bxd4
{[%clk 0:03:03.4]} 11... Nxd4 {[%clk 0:02:37.6]} 12. Qxd4 {[%clk 0:02:52.3]}
12... Qa5 {[%clk 0:02:36.2]} 13. a3 {[%clk 0:02:45.1]} 13... Bxc3+ {[%clk
0:02:29.3]} 14. Qxc3 {[%clk 0:02:46]} 14... Qxc3+ {[%clk 0:02:28.4]} 15. bxc3
{[%clk 0:02:46.9]} 15... Nc5 {[%clk 0:02:25.4]} 16. c4 {[%clk 0:02:35.6]} 16...
Be6 {[%clk 0:02:15.2]} 17. Rc1 {[%clk 0:02:21.6]} 17... Nb3 {[%clk 0:01:52.3]}
18. Rc3 {[%clk 0:02:21]} 18... dxc4 {[%clk 0:01:52.4]} 19. Bxc4 {[%clk
0:02:19.5]} 19... Rac8 {[%clk 0:01:44]} 20. Rxb3 {[%clk 0:02:07]} 20... Rxc4
{[%clk 0:01:43.7]} 21. O-O {[%clk 0:01:59.4]} 21... b6 {[%clk 0:01:42.9]} 22.
Rb4 {[%clk 0:01:50.6]} 22... Rxb4 {[%clk 0:01:28.9]} 23. axb4 {[%clk 0:01:51.5]}
23... a5 {[%clk 0:01:29.7]} 24. bxa5 {[%clk 0:01:40.5]} 24... bxa5 {[%clk
0:01:30.6]} 25. Ra1 {[%clk 0:01:41]} 25... Ra8 {[%clk 0:01:30.5]} 26. Nd4 {[%clk
0:01:30.9]} 26... a4 {[%clk 0:01:23.1]} 27. Ra3 {[%clk 0:01:20.9]} 27... Bd7
{[%clk 0:01:19.6]} 28. Kf2 {[%clk 0:01:11.8]} 28... Rb8 {[%clk 0:01:16.8]} 29.
Ra2 {[%clk 0:01:01.5]} 29... g6 {[%clk 0:01:08.7]} 30. h3 {[%clk 0:00:55.9]}
30... h5 {[%clk 0:01:08.4]} 31. Ke3 {[%clk 0:00:50.8]} 31... Rb1 {[%clk
0:01:07.2]} 32. Ke4 {[%clk 0:00:42.4]} 32... Kf8 {[%clk 0:01:02.8]} 33. Rc2
{[%clk 0:00:27.8]} 33... Rb7 {[%clk 0:00:39.5]} 34. Rc3 {[%clk 0:00:15.6]} 34...
Ra7 {[%clk 0:00:33.5]} 35. Nc2 {[%clk 0:00:13.7]} 35... Ke7 {[%clk 0:00:25.3]}
36. Na3 {[%clk 0:00:11.9]} 36... Rb7 {[%clk 0:00:23.7]} 37. Kd5 {[%clk
0:00:08.8]} 37... Be6+ {[%clk 0:00:19.7]} 38. Kc5 {[%clk 0:00:08.3]} 38... h4
{[%clk 0:00:12.4]} 39. g3 {[%clk 0:00:05.2]} 39... Rc7+ {[%clk 0:00:11]} 40. Kb4
{[%clk 0:00:04.5]} 40... Rxc3 {[%clk 0:00:11.9]} 41. Kxc3 {[%clk 0:00:05.2]}
41... hxg3 {[%clk 0:00:12.6]} 42. Nc2 {[%clk 0:00:02.3]} 42... g2 {[%clk
0:00:12.8]} 43. Nd4 {[%clk 0:00:03]} 43... g1=Q {[%clk 0:00:12.8]} 44. Nc6+
{[%clk 0:00:03.9]} 44... Ke8 {[%clk 0:00:12.3]} 45. Nb4 {[%clk 0:00:04.5]} 45...
Qc5+ {[%clk 0:00:12.5]} 46. Kb2 {[%clk 0:00:04.2]} 46... Qxb4+ {[%clk 0:00:13]}
47. Ka1 {[%clk 0:00:05.1]} 47... Qb3 {[%clk 0:00:12.6]} 0-1

[Event "Early-Titled-Tuesday-Blitz-February-06-2024"]
[Site "Chess.com"]
[Date "2024.02.06"]
[Round "4"]
[White "Actuary44"]
[Black "Arlo2024"]
[Result "1-0"]
[WhiteElo "2488"]
[BlackElo "2294"]
[TimeControl "180+1"]
[EndTime "8:39:50 PST"]
[Termination "Actuary44 won by resignation"]

1. e4 {[%clk 0:03:00.9]} 1... e6 {[%clk 0:03:00.3]} 2. d4 {[%clk 0:03:00.8]}
2... d5 {[%clk 0:03:01]} 3. Nc3 {[%clk 0:03:01.6]} 3... dxe4 {[%clk 0:03:01.9]}
4. Nxe4 {[%clk 0:03:02.5]} 4... Nd7 {[%clk 0:03:02.4]} 5. Ng3 {[%clk 0:03:02.8]}
5... Ngf6 {[%clk 0:03:03.3]} 6. Nf3 {[%clk 0:03:03.2]} 6... Bd6 {[%clk
0:03:03.3]} 7. Bd3 {[%clk 0:03:03.4]} 7... b6 {[%clk 0:03:03.9]} 8. Bg5 {[%clk
0:03:02.6]} 8... Bb7 {[%clk 0:03:04]} 9. Qe2 {[%clk 0:03:02.3]} 9... O-O {[%clk
0:03:03.2]} 10. O-O-O {[%clk 0:03:02.1]} 10... c5 {[%clk 0:03:03.9]} 11. Ne4
{[%clk 0:02:54.6]} 11... Be7 {[%clk 0:03:01.3]} 12. dxc5 {[%clk 0:02:50.3]}
12... bxc5 {[%clk 0:02:53.1]} 13. Nxf6+ {[%clk 0:02:47]} 13... Bxf6 {[%clk
0:02:45.8]} 14. Bxf6 {[%clk 0:02:47.1]} 14... Qxf6 {[%clk 0:02:40.9]} 15. Bxh7+
{[%clk 0:02:46.8]} 15... Kxh7 {[%clk 0:02:40.5]} 16. Rxd7 {[%clk 0:02:47.5]}
16... Rab8 {[%clk 0:02:29.3]} 17. Rxb7 {[%clk 0:02:44.3]} 17... Qf4+ {[%clk
0:02:22.8]} 18. Kb1 {[%clk 0:02:39.5]} 18... Rxb7 {[%clk 0:02:22.8]} 19. g3
{[%clk 0:02:28.3]} 19... Qb4 {[%clk 0:02:16.5]} 20. b3 {[%clk 0:02:28.1]} 20...
Kg8 {[%clk 0:02:13]} 21. Ng5 {[%clk 0:02:22.8]} 21... g6 {[%clk 0:02:03.1]} 22.
h4 {[%clk 0:01:38.1]} 22... Rd8 {[%clk 0:01:41.9]} 23. h5 {[%clk 0:01:28]} 23...
Qd2 {[%clk 0:01:36.8]} 24. Qe4 {[%clk 0:00:36.4]} 24... Qd5 {[%clk 0:01:29.9]}
25. hxg6 {[%clk 0:00:34.5]} 25... fxg6 {[%clk 0:01:05.1]} 26. Qxg6+ {[%clk
0:00:29.2]} 26... Rg7 {[%clk 0:01:04.6]} 27. Qxe6+ {[%clk 0:00:21]} 27... Qxe6
{[%clk 0:00:45.4]} 28. Nxe6 {[%clk 0:00:21.9]} 28... Rh7 {[%clk 0:00:31.5]} 29.
Rxh7 {[%clk 0:00:11.8]} 29... Rd1+ {[%clk 0:00:30.9]} 30. Kb2 {[%clk 0:00:12.4]}
30... Kxh7 {[%clk 0:00:31.3]} 31. Nxc5 {[%clk 0:00:13.1]} 31... Rf1 {[%clk
0:00:27.8]} 32. Nd3 {[%clk 0:00:12.2]} 32... Kg6 {[%clk 0:00:28.4]} 33. Kc3
{[%clk 0:00:10.8]} 33... Kf5 {[%clk 0:00:29]} 34. Kd4 {[%clk 0:00:11.2]} 34...
Ra1 {[%clk 0:00:26.9]} 35. a4 {[%clk 0:00:10.8]} 35... Ra2 {[%clk 0:00:27.7]}
36. c4 {[%clk 0:00:11]} 36... a5 {[%clk 0:00:25.5]} 37. c5 {[%clk 0:00:10]}
37... Rc2 {[%clk 0:00:24.9]} 38. f4 {[%clk 0:00:08.9]} 38... Rg2 {[%clk
0:00:21.2]} 39. c6 {[%clk 0:00:08.5]} 39... Ke6 {[%clk 0:00:20.4]} 40. Kc5
{[%clk 0:00:04.7]} 40... Rxg3 {[%clk 0:00:17.2]} 41. Ne5 {[%clk 0:00:05.2]}
41... Rc3+ {[%clk 0:00:16.6]} 42. Kb6 {[%clk 0:00:05.5]} 42... Kd6 {[%clk
0:00:16.2]} 43. Nc4+ {[%clk 0:00:06]} 43... Kd5 {[%clk 0:00:13.7]} 44. Nxa5
{[%clk 0:00:06.5]} 44... Rxb3+ {[%clk 0:00:14.6]} 45. Nxb3 {[%clk 0:00:06.4]}
45... Kd6 {[%clk 0:00:14.8]} 46. c7 {[%clk 0:00:06.8]} 46... Kd7 {[%clk
0:00:15]} 47. Kb7 {[%clk 0:00:07.7]} 1-0

[Event "Early-Titled-Tuesday-Blitz-February-06-2024"]
[Site "Chess.com"]
[Date "2024.02.06"]
[Round "4"]
[White "Sam_ChessMood"]
[Black "MokshAD1603"]
[Result "1-0"]
[WhiteElo "2909"]
[BlackElo "2590"]
[TimeControl "180+1"]
[EndTime "8:39:53 PST"]
[Termination "Sam_ChessMood won by resignation"]

1. d4 {[%clk 0:02:59.9]} 1... Nf6 {[%clk 0:02:53]} 2. c4 {[%clk 0:03:00.1]} 2...
e6 {[%clk 0:02:47.7]} 3. Nc3 {[%clk 0:03:00.3]} 3... Bb4 {[%clk 0:02:45.7]} 4.
a3 {[%clk 0:03:00]} 4... Bxc3+ {[%clk 0:02:43.4]} 5. bxc3 {[%clk 0:03:00.9]}
5... c5 {[%clk 0:02:43.8]} 6. e3 {[%clk 0:02:54]} 6... Nc6 {[%clk 0:02:38.4]} 7.
Ne2 {[%clk 0:02:50.9]} 7... d6 {[%clk 0:02:25.3]} 8. Ng3 {[%clk 0:02:50.3]} 8...
O-O {[%clk 0:02:22.6]} 9. e4 {[%clk 0:02:45.8]} 9... h6 {[%clk 0:02:22]} 10. d5
{[%clk 0:02:33]} 10... Na5 {[%clk 0:01:57]} 11. Bd3 {[%clk 0:02:27.2]} 11... b6
{[%clk 0:01:56.6]} 12. Rb1 {[%clk 0:02:05.4]} 12... Ba6 {[%clk 0:01:54.4]} 13.
Qe2 {[%clk 0:02:05.3]} 13... Qd7 {[%clk 0:01:38.7]} 14. O-O {[%clk 0:01:52.8]}
14... Qa4 {[%clk 0:01:37.2]} 15. e5 {[%clk 0:01:27.6]} 15... dxe5 {[%clk
0:01:26]} 16. dxe6 {[%clk 0:01:16.2]} 16... Bxc4 {[%clk 0:01:22.1]} 17. Bxc4
{[%clk 0:01:02.1]} 17... Nxc4 {[%clk 0:00:59.4]} 18. e7 {[%clk 0:00:54.8]} 18...
Rfe8 {[%clk 0:00:56.4]} 19. Nf5 {[%clk 0:00:55.4]} 19... Qd7 {[%clk 0:00:45]}
20. Nxh6+ {[%clk 0:00:48]} 20... gxh6 {[%clk 0:00:43.9]} 21. Qxc4 {[%clk
0:00:48.7]} 21... Kh7 {[%clk 0:00:36.7]} 22. Qh4 {[%clk 0:00:44.8]} 22... Ng8
{[%clk 0:00:34.3]} 23. Qe4+ {[%clk 0:00:44.6]} 23... f5 {[%clk 0:00:29.1]} 24.
Qxe5 {[%clk 0:00:45]} 24... Rxe7 {[%clk 0:00:29.5]} 25. Qg3 {[%clk 0:00:40.9]}
25... Qc6 {[%clk 0:00:24.6]} 26. Be3 {[%clk 0:00:27.5]} 26... Rg7 {[%clk
0:00:20.5]} 27. Qh3 {[%clk 0:00:27.7]} 27... Re8 {[%clk 0:00:20.7]} 28. Qxf5+
{[%clk 0:00:25.2]} 28... Kh8 {[%clk 0:00:21]} 29. g3 {[%clk 0:00:22.8]} 29...
Qe4 {[%clk 0:00:16.7]} 30. Qxe4 {[%clk 0:00:18.3]} 30... Rxe4 {[%clk 0:00:17.6]}
31. Rfd1 {[%clk 0:00:18]} 31... Ra4 {[%clk 0:00:17.3]} 32. Ra1 {[%clk
0:00:16.6]} 32... Nf6 {[%clk 0:00:17.4]} 33. Rd8+ {[%clk 0:00:15.2]} 33... Kh7
{[%clk 0:00:17.5]} 34. Bf4 {[%clk 0:00:13.9]} 34... Ne4 {[%clk 0:00:15.9]} 35.
Be5 {[%clk 0:00:12.9]} 35... Re7 {[%clk 0:00:16.1]} 36. f4 {[%clk 0:00:12.2]}
36... Rc4 {[%clk 0:00:16.3]} 37. Rad1 {[%clk 0:00:09.8]} 37... Nxc3 {[%clk
0:00:16]} 38. R1d6 {[%clk 0:00:09.6]} 38... Rxe5 {[%clk 0:00:05.3]} 39. fxe5
{[%clk 0:00:10.5]} 39... Ne4 {[%clk 0:00:05]} 40. R8d7+ {[%clk 0:00:08.1]} 40...
Kg8 {[%clk 0:00:04.4]} 41. Rc6 {[%clk 0:00:09]} 1-0

[Event "Early-Titled-Tuesday-Blitz-February-06-2024"]
[Site "Chess.com"]
[Date "2024.02.06"]
[Round "4"]
[White "Juicy_Fork"]
[Black "yaguigor"]
[Result "1-0"]
[WhiteElo "2436"]
[BlackElo "2742"]
[TimeControl "180+1"]
[EndTime "8:39:53 PST"]
[Termination "Juicy_Fork won on time"]

1. e4 {[%clk 0:03:00.9]} 1... e5 {[%clk 0:02:58.7]} 2. Nf3 {[%clk 0:03:01]} 2...
Nc6 {[%clk 0:02:58.9]} 3. Bb5 {[%clk 0:03:00.6]} 3... f5 {[%clk 0:02:58.4]} 4.
d3 {[%clk 0:03:00.3]} 4... fxe4 {[%clk 0:02:56.2]} 5. dxe4 {[%clk 0:03:01.2]}
5... Nf6 {[%clk 0:02:56.8]} 6. O-O {[%clk 0:03:01.9]} 6... Bc5 {[%clk
0:02:55.3]} 7. Bxc6 {[%clk 0:03:02]} 7... bxc6 {[%clk 0:02:55.1]} 8. Nxe5 {[%clk
0:03:02.1]} 8... O-O {[%clk 0:02:54.3]} 9. Nd3 {[%clk 0:03:00.9]} 9... Nxe4
{[%clk 0:02:52.5]} 10. Nxc5 {[%clk 0:02:57.9]} 10... Nxc5 {[%clk 0:02:52.4]} 11.
Nc3 {[%clk 0:02:58.3]} 11... d5 {[%clk 0:02:49.9]} 12. Be3 {[%clk 0:02:51.3]}
12... Ne6 {[%clk 0:02:46.9]} 13. Ne2 {[%clk 0:02:37.3]} 13... Ba6 {[%clk
0:02:44]} 14. Qd2 {[%clk 0:02:37.1]} 14... Qd6 {[%clk 0:02:41.3]} 15. Rfe1
{[%clk 0:02:28.3]} 15... Bxe2 {[%clk 0:02:40.2]} 16. Qxe2 {[%clk 0:02:26.7]}
16... c5 {[%clk 0:02:30.9]} 17. Rad1 {[%clk 0:02:24.6]} 17... Rae8 {[%clk
0:02:10.2]} 18. Qb5 {[%clk 0:02:14.6]} 18... Rb8 {[%clk 0:02:06.9]} 19. Qe2
{[%clk 0:02:09.5]} 19... Rxb2 {[%clk 0:01:44]} 20. Bc1 {[%clk 0:02:07]} 20...
Nf4 {[%clk 0:01:43.6]} 21. Bxf4 {[%clk 0:01:46.4]} 21... Rxf4 {[%clk 0:01:41.6]}
22. Rb1 {[%clk 0:01:28.5]} 22... Rxb1 {[%clk 0:01:27.2]} 23. Rxb1 {[%clk
0:01:29.4]} 23... Rf8 {[%clk 0:01:14.6]} 24. g3 {[%clk 0:01:21.1]} 24... c4
{[%clk 0:01:11.5]} 25. Rb7 {[%clk 0:01:14.7]} 25... a6 {[%clk 0:01:03.9]} 26.
Qe3 {[%clk 0:01:11.1]} 26... Qc6 {[%clk 0:00:45.7]} 27. Rb1 {[%clk 0:01:03.7]}
27... Re8 {[%clk 0:00:41.7]} 28. Qa7 {[%clk 0:00:56.9]} 28... h6 {[%clk
0:00:30.4]} 29. Rd1 {[%clk 0:00:46.2]} 29... Re2 {[%clk 0:00:23.8]} 30. Qb8+
{[%clk 0:00:45]} 30... Kh7 {[%clk 0:00:22.7]} 31. c3 {[%clk 0:00:43.8]} 31...
Qc5 {[%clk 0:00:21.2]} 32. Qb1+ {[%clk 0:00:33.7]} 32... Kg8 {[%clk 0:00:18.2]}
33. Qb8+ {[%clk 0:00:32.1]} 33... Kf7 {[%clk 0:00:18.8]} 34. Rd4 {[%clk
0:00:32.1]} 34... Re4 {[%clk 0:00:14.3]} 35. Rd2 {[%clk 0:00:22]} 35... Qd6
{[%clk 0:00:11.5]} 36. Qb7 {[%clk 0:00:20.1]} 36... Re5 {[%clk 0:00:09.4]} 37.
f4 {[%clk 0:00:20]} 37... Re3 {[%clk 0:00:04.6]} 38. Rxd5 {[%clk 0:00:17.4]}
38... Qe6 {[%clk 0:00:04.4]} 39. Qxc7+ {[%clk 0:00:12.4]} 39... Kg8 {[%clk
0:00:04.9]} 40. Re5 {[%clk 0:00:12]} 40... Rxe5 {[%clk 0:00:03.7]} 41. fxe5
{[%clk 0:00:07.7]} 1-0